bitfinex/quotes_SOLUSD_20250922
["timestamp","ask_amount","ask_price","bid_price","bid_amount"]
[1758528074230,36.36842555,222.3,222.26,94.19559401]
[1758528074533,31.2,222.27,222.25,0.1]
[1758528074709,35.69923513,222.26,222.25,0.1]
[1758528074905,36.36923513,222.26,222.25,0.1]
[1758528076027,0.67,222.26,222.25,0.1]
[1758528076710,5.16923513,222.26,222.25,0.1]
[1758528077609,0.67,222.26,222.25,0.1]
[1758528078019,5.21923513,222.26,222.25,0.1]
[1758528078622,31.2,222.26,222.25,0.1]
[1758528079030,0.72,222.32,222.25,0.1]
[1758528079229,5.21741398,222.35,222.25,49.18568714]
[1758528079435,5.21741398,222.35,222.26,14.25559401]
[1758528079741,16.46094894,222.35,222.26,14.25559401]
[1758528079920,31.2,222.32,222.26,13.59559401]
[1758528080237,0.72,222.31,222.25,36.34]
[1758528080428,0.72,222.3,222.25,36.34]
[1758528080631,0.72,222.29,222.25,36.34]
[1758528080831,31.2,222.26,222.25,49.93559401]
[1758528081738,31.2,222.26,222.25,13.69559401]
[1758528082822,4.49883251,222.28,222.25,13.69559401]
[1758528083022,31.2,222.26,222.25,13.69559401]
[1758528083226,31.92,222.26,222.25,0.1]
[1758528083820,26.692,222.25,222.21,4.503]
[1758528084038,27.412,222.25,222.21,4.503]
[1758528084227,0.72,222.24,222.2,0.08017161]
[1758528084429,15.74944876,222.23,222.2,0.08017161]
[1758528084736,0.72,222.22,222.2,0.08017161]
[1758528085423,36.96,222.22,222.2,0.08017161]
[1758528086536,31.92,222.21,222.2,0.08017161]
[1758528088525,0.72,222.21,222.2,0.08017161]
[1758528089152,31.92,222.21,222.2,0.08017161]
[1758528089541,0.72,222.21,222.2,0.08017161]
[1758528089743,0.69,222.24,222.2,0.08017161]
[1758528090050,36.24,222.28,222.2,0.08017161]
[1758528090362,20.0,222.34,222.2,0.08017161]
[1758528090554,0.69,222.28,222.21,13.59559401]
[1758528091150,0.69,222.31,222.23,13.59559401]
[1758528091355,31.29,222.31,222.23,13.59559401]
[1758528091648,0.69,222.31,222.21,21.26186219]
[1758528091851,0.69,222.31,222.25,13.59559401]
[1758528092028,0.69,222.3,222.22,13.59559401]
[1758528092364,31.89,222.3,222.22,0.67]
[1758528092845,0.69,222.3,222.22,0.67]
[1758528093059,0.69,222.3,222.23,13.59559401]
[1758528093432,0.69,222.29,222.2,13.67576562]
[1758528093645,0.69,222.28,222.2,13.67576562]
[1758528093834,31.2,222.26,222.2,0.08017161]
[1758528094245,0.69,222.25,222.2,0.08017161]
[1758528094446,31.2,222.25,222.21,0.67]
[1758528095138,31.2,222.27,222.2,0.08017161]
[1758528095339,0.69,222.26,222.2,0.08017161]
[1758528097230,31.2,222.24,222.2,0.08017161]
[1758528097468,0.69,222.23,222.2,0.08017161]
[1758528097961,36.24,222.22,222.2,0.08017161]
[1758528098158,31.2,222.19,222.15,10.09692512]
[1758528098348,0.69,222.18,222.15,10.09692512]
[1758528098537,0.69,222.17,222.15,10.09692512]
[1758528098731,0.69,222.16,222.15,10.09692512]
[1758528100156,3.64150334,222.16,222.15,10.09692512]
[1758528100536,36.93,222.16,222.15,10.09692512]
[1758528100736,34.84150334,222.16,222.15,10.09692512]
[1758528100941,71.08150334,222.16,222.15,10.09692512]
[1758528101149,0.69,222.16,222.15,10.09692512]
[1758528101549,0.69,222.2,222.15,10.09692512]
[1758528101757,0.69,222.25,222.15,10.09692512]
[1758528101930,0.69,222.25,222.16,13.59559401]
[1758528102135,36.93,222.25,222.16,13.59559401]
[1758528102336,2.95167487,222.24,222.16,13.59559401]
[1758528102648,31.2,222.22,222.16,13.59559401]
[1758528102834,31.2,222.21,222.16,13.59559401]
[1758528103756,31.2,222.2,222.16,13.59559401]
[1758528104062,31.2,222.2,222.16,14.26559401]
[1758528104236,31.2,222.21,222.16,13.59559401]
[1758528104435,31.2,222.21,222.17,0.67]
[1758528104646,31.2,222.21,222.18,0.67]
[1758528104936,31.2,222.22,222.16,13.59559401]
[1758528105153,31.89,222.22,222.16,13.59559401]
[1758528105356,2.9578169,222.21,222.15,10.09692512]
[1758528107657,0.69,222.2,222.15,10.09692512]
[1758528108057,0.69,222.19,222.15,10.09692512]
[1758528108354,31.2,222.18,222.15,10.09692512]
[1758528110355,3.71173142,222.24,222.15,10.09692512]
[1758528110555,68.13,222.23,222.16,14.26559401]
[1758528110747,34.16454641,222.22,222.16,14.26559401]
[1758528110946,31.2,222.2,222.16,14.26559401]
[1758528111540,36.93,222.26,222.17,14.26559401]
[1758528111742,3.65584104,222.25,222.17,14.26559401]
[1758528112063,31.2,222.22,222.16,13.59559401]
[1758528112282,34.16584104,222.21,222.16,13.59559401]
[1758528112568,3.65584104,222.2,222.15,10.09692512]
[1758528112955,2.96584104,222.2,222.15,10.09692512]
[1758528113141,0.69,222.19,222.15,10.09692512]
[1758528113564,0.69,222.18,222.15,10.09692512]
[1758528113739,0.69,222.17,222.15,10.09692512]
[1758528113943,2.96584104,222.2,222.15,10.09692512]
[1758528114145,0.69,222.16,222.15,10.09692512]
[1758528114850,0.69,222.18,222.15,10.09692512]
[1758528115072,0.69,222.17,222.15,10.09692512]
[1758528115839,31.2,222.16,222.15,10.09692512]
[1758528116067,34.16584104,222.16,222.15,10.09692512]
[1758528116349,2.96584104,222.16,222.15,10.09692512]
[1758528117242,3.65584104,222.16,222.15,10.09692512]
[1758528117664,2.96584104,222.16,222.15,10.09692512]
[1758528117872,31.2,222.16,222.15,10.09692512]
[1758528118045,34.16584104,222.16,222.15,10.09692512]
[1758528118753,2.96584104,222.16,222.15,10.09692512]
[1758528118957,2.96584104,222.17,222.15,10.09692512]
[1758528119153,3.65584104,222.17,222.15,10.09692512]
[1758528119947,31.2,222.16,222.15,10.09692512]
[1758528120145,34.16584104,222.16,222.15,10.09692512]
[1758528120368,2.96584104,222.16,222.15,24.36251913]
[1758528120563,3.71173142,222.22,222.15,24.36251913]
[1758528120564,2.96584104,222.2,222.16,13.59559401]
[1758528120772,3.71173142,222.24,222.15,10.76692512]
[1758528120952,2.96584104,222.26,222.19,13.59559401]
[1758528121157,28.53173142,222.27,222.21,13.59559401]
[1758528121467,31.2,222.24,222.21,13.59559401]
[1758528121644,2.96584104,222.23,222.21,0.67]
[1758528121845,2.96584104,222.23,222.22,19.5814596]
[1758528122153,12.56,222.35,222.23,13.59559401]
[1758528122470,31.2,222.32,222.27,13.59559401]
[1758528122662,12.56,222.35,222.27,13.59559401]
[1758528122870,31.2,222.32,222.27,13.59559401]
[1758528123056,31.2,222.32,222.17,15.75370162]
[1758528123269,0.69,222.31,222.22,13.59559401]
[1758528123570,0.69,222.3,222.15,10.09692512]
[1758528123770,31.2,222.27,222.16,13.59559401]
[1758528123957,0.69,222.26,222.16,13.59559401]
[1758528124154,0.69,222.25,222.16,13.59559401]
[1758528124473,0.69,222.24,222.16,13.59559401]
[1758528124680,0.69,222.23,222.16,13.59559401]
[1758528126868,31.2,222.21,222.15,10.09692512]
[1758528127066,31.89,222.2,222.15,10.09692512]
[1758528127397,0.69,222.19,222.15,10.09692512]
[1758528127547,0.69,222.18,222.15,10.09692512]
[1758528127754,0.69,222.17,222.15,10.09692512]
[1758528127957,0.69,222.16,222.15,10.09692512]
[1758528129587,36.91,222.16,222.15,10.09692512]
[1758528129885,31.89,222.16,222.15,10.09692512]
[1758528131151,0.69,222.16,222.15,10.09692512]
[1758528131674,31.89,222.16,222.15,10.09692512]
[1758528133080,4.36173142,222.2,222.15,10.09692512]
[1758528133284,0.65,222.2,222.15,10.09692512]
[1758528133456,0.65,222.19,222.15,10.09692512]
[1758528133655,31.85,222.18,222.15,10.09692512]
[1758528133953,3.62921801,222.17,222.15,10.09692512]
[1758528134160,0.65,222.16,222.15,10.09692512]
[1758528134682,36.87,222.16,222.15,10.09692512]
[1758528134908,39.84921801,222.16,222.15,10.09692512]
[1758528135670,39.84921801,222.16,222.15,9.37692512]
[1758528136471,53.44481202,222.16,222.15,7.75692512]
[1758528136671,73.44481202,222.16,222.15,0.14508932]
[1758528137399,31.2,222.1,222.03,22.89263864]
[1758528137558,31.2,222.1,221.93,9.82168412]
[1758528137559,2.97921801,222.09,222.05,35.87192946]
[1758528137763,2.97921801,222.09,222.06,0.69]
[1758528138076,2.97921801,222.13,222.07,0.69]
[1758528138273,31.02,222.12,222.07,0.69]
[1758528138464,2.97921801,222.11,222.05,22.27633545]
[1758528138866,2.47921801,222.11,222.05,22.27633545]
[1758528139386,2.47921801,222.11,222.04,0.69]
[1758528139976,31.2,222.09,222.04,0.69]
[1758528140283,31.2,222.09,222.02,13.59559401]
[1758528140580,31.2,222.09,222.05,0.69]
[1758528140968,31.2,222.13,222.01,13.59559401]
[1758528141171,36.22,222.13,222.07,13.59559401]
[1758528141685,36.22,222.13,222.06,0.69]
[1758528141889,31.2,222.16,222.06,0.69]
[1758528142267,0.56,222.17,222.06,0.69]
[1758528142268,31.2,222.12,222.07,13.59559401]
[1758528142473,31.2,222.12,222.08,0.69]
[1758528142676,31.2,222.1,222.09,0.69]
[1758528142964,31.2,222.1,222.01,13.59559401]
[1758528143165,31.2,222.1,222.01,36.55418087]
[1758528144784,31.2,222.1,222.02,0.69]
[1758528145189,31.2,222.09,222.02,0.69]
[1758528148182,31.2,222.09,222.03,13.59559401]
[1758528148379,31.2,222.09,222.05,13.59559401]
[1758528148592,0.68,222.21,222.08,5.31586559]
[1758528148778,36.9,222.21,222.09,14.28559401]
[1758528148975,36.9,222.21,222.1,0.69]
[1758528149465,0.68,222.21,222.1,0.69]
[1758528149669,3.72095883,222.24,222.1,0.69]
[1758528149670,0.68,222.25,222.11,18.9114596]
[1758528149908,36.9,222.25,222.13,13.59559401]
[1758528150073,31.2,222.22,222.14,0.69]
[1758528150889,2.97427564,222.21,222.14,0.69]
[1758528151204,31.88,222.21,222.13,13.59559401]
[1758528151381,2.97427564,222.2,222.13,13.59559401]
[1758528151694,0.68,222.19,222.1,13.59559401]
[1758528152007,0.68,222.19,222.12,13.59559401]
[1758528153265,0.68,222.18,222.09,13.59559401]
[1758528153673,31.2,222.15,221.99,9.82037175]
[1758528153877,3.65343268,222.14,222.05,13.59559401]
[1758528154400,3.65343268,222.14,222.07,13.59559401]
[1758528155799,2.97343268,222.14,222.09,13.59559401]
[1758528156006,0.68,222.17,222.1,0.69]
[1758528156306,31.2,222.14,222.09,13.59559401]
[1758528157518,31.2,222.14,222.09,0.69]
[1758528157681,31.2,222.14,222.1,0.69]
[1758528158010,31.2,222.13,222.11,0.69]
[1758528158600,31.2,222.13,222.08,0.69]
[1758528158798,31.2,222.14,222.09,0.69]
[1758528159297,31.2,222.14,222.1,0.69]
[1758528161406,0.68,222.18,222.1,0.69]
[1758528161598,31.2,222.14,222.1,0.69]
[1758528161796,31.2,222.14,222.04,18.09926116]
[1758528162018,31.2,222.14,222.06,13.59559401]
[1758528162228,31.2,222.2,222.08,13.59559401]
[1758528162403,31.2,222.14,222.08,13.59559401]
[1758528163298,31.2,222.14,222.08,0.69]
[1758528163494,0.68,222.22,222.08,0.69]
[1758528163799,18.72,222.21,222.08,6.00586559]
[1758528164004,2.97545701,222.2,222.09,14.28559401]
[1758528164215,31.2,222.18,222.11,13.59559401]
[1758528164515,2.97545701,222.17,222.13,13.59559401]
[1758528164816,2.97545701,222.17,222.13,14.28559401]
[1758528165116,2.97545701,222.17,222.15,13.59559401]
[1758528165305,2.97545701,222.18,222.15,13.59559401]
[1758528165622,3.65545701,222.21,222.15,13.59559401]
[1758528165821,31.2,222.19,222.1,13.59559401]
[1758528166026,3.65545701,222.18,222.1,13.59559401]
[1758528166205,0.68,222.17,222.1,13.59559401]
[1758528166526,0.68,222.16,222.1,13.59559401]
[1758528166699,3.65545701,222.18,222.1,13.59559401]
[1758528166894,2.97545701,222.18,222.12,13.59559401]
[1758528167122,2.97545701,222.2,222.12,13.59559401]
[1758528167302,2.97545701,222.2,222.14,13.59559401]
[1758528167726,31.2,222.18,222.14,13.59559401]
[1758528168023,2.97545701,222.17,222.14,14.28559401]
[1758528168325,2.97545701,222.2,222.15,0.69]
[1758528168624,2.97545701,222.23,222.16,0.69]
[1758528169322,31.2,222.22,222.13,0.69]
[1758528169619,2.97545701,222.21,222.15,13.59559401]
[1758528170604,0.68,222.2,222.13,13.59559401]
[1758528170999,31.2,222.16,222.09,13.59559401]
[1758528171314,2.97545701,222.15,222.09,13.59559401]
[1758528172302,0.68,222.14,222.06,13.59559401]
[1758528172501,3.65545701,222.14,222.06,13.59559401]
[1758528174024,34.85545701,222.14,222.06,13.59559401]
[1758528174219,31.2,222.1,221.97,13.59559401]
[1758528174522,31.2,222.08,222.03,13.59559401]
[1758528174713,2.97545701,222.07,222.03,0.69]
[1758528175214,2.97545701,222.07,222.01,13.59559401]
[1758528175402,3.65545701,222.07,222.01,13.59559401]
[1758528176520,31.2,222.05,222.01,13.59559401]
[1758528176717,0.68,222.1,222.02,0.69]
[1758528177035,31.2,222.1,222.03,13.59559401]
[1758528177208,2.98465818,222.09,222.05,13.59559401]
[1758528177525,2.98465818,222.11,222.07,13.59559401]
[1758528177728,2.98465818,222.15,222.09,13.59559401]
[1758528177930,3.72095883,222.19,222.11,13.59559401]
[1758528178235,31.2,222.16,222.12,0.7]
[1758528178414,3.66465818,222.15,222.07,0.7]
[1758528178614,6.70561701,222.17,222.08,13.59559401]
[1758528178918,31.2,222.14,222.08,0.7]
[1758528179109,34.18465818,222.13,222.08,0.7]
[1758528179427,2.98465818,222.12,222.08,0.7]
[1758528179618,31.2,222.11,222.1,13.59559401]
[1758528179803,34.18465818,222.11,222.1,14.29559401]
[1758528180205,2.98465818,222.11,222.1,14.29559401]
[1758528180524,2.98465818,222.18,222.1,14.29559401]
[1758528180831,2.98465818,222.19,222.12,13.59559401]
[1758528181209,31.2,222.17,222.12,13.59559401]
[1758528181409,2.98465818,222.16,222.14,13.59559401]
[1758528182038,2.98465818,222.19,222.14,13.59559401]
[1758528182218,31.2,222.19,222.15,0.7]
[1758528182437,34.18465818,222.18,222.15,0.7]
[1758528182724,2.98465818,222.17,222.16,0.7]
[1758528183231,31.2,222.19,222.16,0.7]
[1758528183425,2.98465818,222.18,222.17,14.29559401]
[1758528183634,36.18,222.23,222.18,13.59559401]
[1758528183818,2.98465818,222.22,222.18,14.29559401]
[1758528184016,3.66465818,222.22,222.16,13.59559401]
[1758528184203,31.2,222.2,222.16,13.59559401]
[1758528184410,2.98465818,222.19,222.16,0.7]
[1758528184610,2.98465818,222.19,222.18,13.59559401]
[1758528184812,2.98465818,222.19,222.18,0.7]
[1758528185008,2.98465818,222.21,222.16,13.59559401]
[1758528185220,2.98465818,222.21,222.16,14.29559401]
[1758528185435,2.98465818,222.21,222.18,13.59559401]
[1758528185927,2.98465818,222.21,222.16,13.59559401]
[1758528186114,2.98465818,222.21,222.18,13.59559401]
[1758528186320,2.98465818,222.21,222.19,0.7]
[1758528186719,2.98465818,222.21,222.13,13.59559401]
[1758528186922,2.98465818,222.21,222.17,13.59559401]
[1758528187237,2.98465818,222.21,222.14,0.7]
[1758528188539,2.98465818,222.21,222.15,13.59559401]
[1758528188832,34.18465818,222.21,222.17,13.59559401]
[1758528189034,2.98465818,222.2,222.19,13.59559401]
[1758528189234,2.98465818,222.2,222.19,14.29559401]
[1758528189412,132.2,222.35,222.19,14.29559401]
[1758528189413,31.2,222.22,222.19,14.29559401]
[1758528189613,2.98465818,222.21,222.2,14.29559401]
[1758528190223,2.98465818,222.23,222.21,13.59559401]
[1758528190520,2.98465818,222.23,222.17,0.7]
[1758528190831,2.98465818,222.23,222.19,13.59559401]
[1758528191011,2.98465818,222.23,222.21,13.59559401]
[1758528191215,2.98465818,222.24,222.21,13.59559401]
[1758528191622,2.98465818,222.24,222.17,0.7]
[1758528191921,2.98465818,222.24,222.18,13.59559401]
[1758528193319,31.2,222.23,222.15,0.7]
[1758528193543,2.98465818,222.22,222.15,0.7]
[1758528193926,2.37555901,222.22,222.15,0.7]
[1758528194247,0.68,222.24,222.16,13.59559401]
[1758528194739,0.68,222.24,222.18,13.59559401]
[1758528195134,0.68,222.24,222.17,0.7]
[1758528195930,0.68,222.24,222.15,13.59559401]
[1758528196132,31.2,222.2,222.15,13.59559401]
[1758528196738,0.67,222.19,222.13,13.59559401]
[1758528196924,0.67,222.19,222.12,0.69]
[1758528197338,0.67,222.19,222.1,13.59559401]
[1758528197624,0.67,222.18,222.1,13.59559401]
[1758528197818,0.67,222.18,222.1,14.28559401]
[1758528199136,0.67,222.18,222.1,0.69]
[1758528199324,31.2,222.2,222.1,0.69]
[1758528199325,0.67,222.2,222.1,0.69]
[1758528199524,31.2,222.16,222.1,0.69]
[1758528200925,31.87,222.16,222.1,0.69]
[1758528201341,31.87,222.16,222.06,0.69]
[1758528201846,31.87,222.16,221.95,38.30342661]
[1758528201847,31.87,222.16,222.0,4.513]
[1758528202050,17.31655284,222.18,222.0,4.513]
[1758528202051,3.72095883,222.14,222.0,0.69]
[1758528202353,31.2,222.1,222.0,0.69]
[1758528202546,31.2,222.1,222.01,18.10859401]
[1758528202847,31.2,222.09,222.03,13.59559401]
[1758528203030,31.2,222.09,222.05,13.59559401]
[1758528203233,31.2,222.09,222.06,0.69]
[1758528203733,31.2,222.09,222.01,4.513]
[1758528203734,31.2,222.05,222.04,14.28559401]
[1758528204252,3.72095883,222.16,222.05,13.59559401]
[1758528204450,4.50105774,222.17,222.07,13.59559401]
[1758528204627,42.45378559,222.15,222.09,13.59559401]
[1758528204831,42.45378559,222.15,222.08,0.69]
[1758528204832,11.25378559,222.15,222.08,0.69]
[1758528205131,11.25378559,222.15,222.09,13.59559401]
[1758528205333,11.25378559,222.15,222.1,0.69]
[1758528205546,3.6210672,222.16,222.11,0.69]
[1758528205748,15.7551204,222.15,222.11,0.69]
[1758528205935,2.98472689,222.14,222.09,13.59559401]
[1758528206248,2.98472689,222.14,222.1,0.69]
[1758528206447,31.2,222.12,222.1,0.69]
[1758528207157,31.2,222.12,222.1,0.72]
[1758528207460,31.2,222.12,222.06,0.72]
[1758528207762,4.50247636,222.1,222.07,13.59559401]
[1758528207923,4.50247636,222.1,222.07,14.31559401]
[1758528208129,4.50228829,222.11,222.08,0.72]
[1758528208635,7.48789823,222.11,222.09,0.72]
[1758528208854,2.98560994,222.11,222.1,0.72]
[1758528209064,3.60985647,222.16,222.1,0.72]
[1758528209234,31.2,222.15,222.1,0.72]
[1758528209438,2.98600162,222.14,222.12,13.59559401]
[1758528209758,4.50186827,222.13,222.12,14.31559401]
[1758528209928,2.98600162,222.15,222.12,14.31559401]
[1758528210131,31.2,222.13,222.12,14.31559401]
[1758528210951,11.25199314,222.19,222.12,14.31559401]
[1758528211141,31.2,222.15,222.14,13.59559401]
[1758528211448,34.1867968,222.15,222.14,14.31559401]
[1758528211660,4.50085516,222.18,222.14,14.31559401]
[1758528211837,4.50045004,222.2,222.15,0.72]
[1758528212037,31.2,222.18,222.15,0.72]
[1758528212338,31.2,222.18,222.11,18.09775793]
[1758528212339,34.18695431,222.17,222.11,13.59559401]
[1758528212545,2.98695431,222.16,222.12,0.72]
[1758528212736,2.98695431,222.16,222.14,13.59559401]
[1758528212938,2.98695431,222.16,222.1,13.59559401]
[1758528213147,3.73369289,222.25,222.14,7.69084672]
[1758528213349,4.49943757,222.25,222.16,13.59559401]
[1758528213658,31.2,222.22,222.17,0.72]
[1758528213860,2.98806644,222.21,222.18,13.59559401]
[1758528214060,4.50000797,222.23,222.2,13.59559401]
[1758528214442,31.2,222.21,222.2,13.59559401]
[1758528214758,34.18806644,222.21,222.2,13.59559401]
[1758528215764,34.18806644,222.21,222.16,0.72]
[1758528215979,4.50045004,222.2,222.17,0.72]
[1758528216136,4.50045004,222.2,222.19,13.59559401]
[1758528216761,7.48690369,222.2,222.15,14.31559401]
[1758528216942,8.14690369,222.2,222.15,13.59559401]
[1758528217144,16.41157515,222.2,222.13,13.59559401]
[1758528217363,31.2,222.17,222.1,13.59559401]
[1758528217538,2.98645365,222.16,222.12,0.72]
[1758528217744,2.98645365,222.16,222.13,0.72]
[1758528217974,31.2,222.2,222.13,5.22183551]
[1758528218283,2.98615278,222.19,222.15,13.59559401]
[1758528218576,2.98615278,222.19,222.15,0.72]
[1758528219066,2.98615278,222.19,222.17,13.59559401]
[1758528219067,7.48692717,222.19,222.17,13.59559401]
[1758528219865,8.14692717,222.19,222.13,0.72]
[1758528220065,31.2,222.16,222.12,13.59559401]
[1758528220278,31.2,222.16,222.12,0.72]
[1758528220647,31.2,222.16,222.06,11.25786658]
[1758528220648,2.9874552,222.15,222.08,14.31559401]
[1758528220846,3.6474552,222.15,222.08,94.91559401]
[1758528221265,31.2,222.12,222.08,94.91559401]
[1758528221438,31.2,222.12,222.08,94.19559401]
[1758528221640,4.50166561,222.14,222.08,94.19559401]
[1758528221641,4.50166561,222.14,222.1,13.59559401]
[1758528221853,7.49082397,222.14,222.1,0.72]
[1758528222065,7.49082397,222.14,222.09,13.59559401]
[1758528222272,7.49082397,222.14,222.1,0.72]
[1758528222842,7.49082397,222.14,222.12,13.59559401]
[1758528223058,7.49082397,222.14,222.09,13.59559401]
[1758528223259,18.74498801,222.14,222.1,0.72]
[1758528223467,2.98915836,222.13,222.1,0.72]
[1758528223666,2.98915836,222.13,222.08,13.59559401]
[1758528223852,2.98915836,222.13,222.08,14.31559401]
[1758528224050,2.98915836,222.13,222.1,13.59559401]
[1758528224658,7.49102663,222.13,222.12,13.59559401]
[1758528224842,8.15102663,222.13,222.12,13.59559401]
[1758528225039,7.49102663,222.13,222.07,13.59559401]
[1758528225256,7.49102663,222.13,222.07,14.31559401]
[1758528225760,31.2,222.12,222.09,13.59559401]
[1758528226167,2.99027829,222.11,222.09,13.59559401]
[1758528226857,4.50247636,222.1,222.09,13.59559401]
[1758528227863,2.99027829,222.11,222.09,13.59559401]
[1758528228164,2.99027829,222.11,222.09,0.72]
[1758528228467,4.5022885,222.11,222.09,0.72]
[1758528228672,31.2,222.11,222.09,0.72]
[1758528230267,31.2,222.11,222.07,0.72]
[1758528230573,31.2,222.11,222.09,13.59559401]
[1758528230952,31.2,222.11,222.09,0.72]
[1758528232167,35.70233748,222.11,222.07,13.59559401]
[1758528232486,35.70233748,222.11,222.08,0.72]
[1758528232674,31.2,222.11,222.08,0.72]
[1758528232862,35.70235347,222.11,222.08,0.72]
[1758528234473,31.2,222.11,222.08,0.72]
[1758528234769,35.7023128,222.11,222.08,0.72]
[1758528234981,42.45294745,222.17,222.09,0.72]
[1758528235176,2.99179559,222.16,222.09,0.72]
[1758528235476,42.45294745,222.17,222.09,0.72]
[1758528235477,2.99179559,222.15,222.1,13.59559401]
[1758528235663,2.99179559,222.16,222.12,13.59559401]
[1758528235849,2.99179559,222.15,222.12,13.59559401]
[1758528236254,4.50166561,222.14,222.1,13.59559401]
[1758528236457,7.4934612,222.14,222.1,13.59559401]
[1758528236665,31.2,222.13,222.12,13.59559401]
[1758528236875,2.99179559,222.13,222.11,13.59559401]
[1758528237171,2.99179559,222.15,222.12,0.66]
[1758528237371,31.2,222.14,222.1,13.59559401]
[1758528237678,2.99179559,222.13,222.1,14.25559401]
[1758528237880,2.99179559,222.13,222.11,0.66]
[1758528238669,2.99179559,222.13,222.1,13.59559401]
[1758528238985,4.50147027,222.15,222.13,13.59559401]
[1758528239277,7.49326586,222.15,222.13,13.59559401]
[1758528239473,4.50147027,222.15,222.13,13.59559401]
[1758528239674,7.49326586,222.15,222.12,13.59559401]
[1758528239987,4.50147027,222.15,222.12,14.25559401]
[1758528240180,7.49326586,222.15,222.12,14.25559401]
[1758528240374,4.50147027,222.15,222.12,14.25559401]
[1758528240679,7.49326586,222.15,222.12,14.25559401]
[1758528240858,4.50147027,222.15,222.12,14.25559401]
[1758528241059,7.49326586,222.15,222.12,14.25559401]
[1758528241261,4.50147027,222.15,222.1,14.25559401]
[1758528241463,7.49326586,222.15,222.12,13.59559401]
[1758528241776,31.2,222.15,222.1,13.59559401]
[1758528241970,2.99179559,222.14,222.12,13.59559401]
[1758528242167,2.99179559,222.14,222.12,14.25559401]
[1758528242865,7.49351905,222.14,222.1,14.25559401]
[1758528243071,0.68,222.13,222.1,13.59559401]
[1758528243264,3.67179559,222.13,222.08,13.59559401]
[1758528243465,3.67179559,222.13,222.08,14.25559401]
[1758528243663,2.99179559,222.13,222.1,13.59559401]
[1758528243871,31.2,222.12,222.06,14.25559401]
[1758528244169,2.99179559,222.11,222.06,130.93559401]
[1758528244678,0.68,222.1,222.05,36.08]
[1758528244863,0.68,222.09,222.06,13.59559401]
[1758528245279,0.68,222.08,222.06,13.59559401]
[1758528246782,31.2,222.07,222.06,13.59559401]
[1758528246977,35.70308461,222.07,222.06,13.59559401]
[1758528247186,8.17717196,222.07,222.03,13.59559401]
[1758528247502,31.2,222.04,222.02,13.59559401]
[1758528247679,3.67482813,222.03,222.01,4.513]
[1758528248081,2.99482813,222.03,222.01,4.513]
[1758528248385,0.68,222.02,222.01,4.513]
[1758528248986,23.27099999,221.99,221.95,13.59559401]
[1758528249286,16.44434554,222.02,221.95,14.25559401]
[1758528249585,2.99345319,222.01,221.95,14.25559401]
[1758528250079,0.68,222.0,221.93,13.59559401]
[1758528250265,0.68,222.0,221.94,36.08]
[1758528250885,15.76576576,222.0,221.94,36.74]
[1758528251194,46.96576576,222.0,221.94,36.74]
[1758528251688,31.2,222.0,221.95,0.66]
[1758528251868,4.50433135,222.01,221.94,36.08]
[1758528252075,31.2,222.0,221.97,13.59559401]
[1758528252482,31.2,221.98,221.97,13.59559401]
[1758528252977,31.2,221.98,221.97,14.24559401]
[1758528253171,35.70464033,222.0,221.97,14.24559401]
[1758528253682,31.2,222.0,221.99,13.59559401]
[1758528253978,31.2,222.0,221.99,0.65]
[1758528254379,31.2,222.0,221.95,94.19559401]
[1758528254571,31.2,222.0,221.97,0.65]
[1758528254774,30.37751558,222.0,221.99,13.59559401]
[1758528255085,41.31148442,222.03,221.99,54.83021436]
[1758528255299,41.31148442,222.03,222.0,0.65]
[1758528255590,41.31148442,222.03,222.02,13.59559401]
[1758528255794,41.31148442,222.03,222.02,14.24559401]
[1758528256677,45.81538028,222.03,221.99,0.65]
[1758528256880,31.2,222.0,221.98,49.67559401]
[1758528257684,31.2,222.0,221.98,50.32559401]